Cogmind - Beta 17 @@@ ROGUE MODE // 2026.07.26 @ 00:04:29 Player: Afro Result: Destroyed by B-75 Beast via exploding Fusion Modulator Performance ------------- Evolutions (5) 2500 Regions Visited (11) 2200 Robots Destroyed (29) 145 Value Destroyed (727) 727 Prototype IDs (3) 60 Alien Tech Used (0) 0 Bonus (500) 500 TOTAL SCORE: 6132 Bonus ------- Entered DSFs 500 Cogmind --------- Core Integrity 0/1000 Matter 102/300 Energy 100/100 System Corruption 0% Temperature Cool (24) Movement Core (50) Location -5/Factory Parts ------- > --- POWER (3) -------- (None) > --- PROPULSION (4) --- (None) > --- UTILITY (7) ------ Improved Targeting Computer Core Analyzer Core Analyzer > --- WEAPON (3) ------- (None) > --- INVENTORY (5) ---- Experimental Power Shielding Experimental Power Shielding Improved Shock Absorption System Mass Driver Peak State ------------ > --- POWER ------------ Neutrino Core > --- PROPULSION ------- Combat Airjet Combat Airjet Combat Airjet Combat Airjet > --- UTILITY ---------- Advanced Salvage Targeting Computer Improved Reaction Control System Improved Reaction Control System > --- WEAPON ----------- (None) > --- INVENTORY -------- (None) [Rating: 42] Favorites ----------- Power Light Ion Engine Engine Light Ion Engine Power Core Light Nuclear Core Propulsion Flight Unit Wheel Compact Wheel Hover Unit Combat Airjet Flight Unit Flight Unit Utility Seismic Detector Device Seismic Detector Storage Small Storage Unit Processor Improved Melee Analysis Suite Hackware Hacking Suite Protection Layered Light Armor Plating Weapon Small Laser Energy Gun Small Laser Energy Cannon Long-range Proton Cannon Ballistic Cannon Mass Driver Launcher Improved Grenade Launcher Special Weapon Mining Laser Slashing Weapon Katana Special Melee Weapon Datajack Build | -11 -10 -10 -9 -9 -8 -7 -7 -7 -6 -6 -5 ------- Run | Yrd Mat Min Mat Min Mat Fac Low Low Fac DSF Fac Slots Evolved 10 | . . . 2 . 2 2 . . 2 . 2 Power 2 | . . . . . . 1 . . . . 1 Propulsion 2 | . . . . . 1 . . . 1 . . Utility 5 | . . . 2 . 1 1 . . . . 1 Weapon 1 | . . . . . . . . . 1 . . Parts Attached 65 | 8 . 7 7 1 5 5 5 . . 6 21 Power 9 | 1 . 2 1 . 1 1 . . . . 3 Engine 5 | 1 . 2 1 . . . . . . . 1 Core 4 | . . . . . 1 1 . . . . 2 Reactor . | . . . . . . . . . . . . Propulsion 19 | 3 . 3 . 1 3 2 2 . . . 5 Treads . | . . . . . . . . . . . . Leg . | . . . . . . . . . . . . Wheel 4 | 3 . 1 . . . . . . . . . Hover 5 | . . . . . . . . . . . 5 Flight 10 | . . 2 . 1 3 2 2 . . . . Utility 28 | 2 . 1 4 . 1 2 2 . . 6 10 Device 13 | 1 . 1 3 . . 1 . . . 4 3 Storage 1 | 1 . . . . . . . . . . . Processor 9 | . . . 1 . . 1 1 . . 1 5 Hackware 3 | . . . . . 1 . 1 . . 1 . Protection 2 | . . . . . . . . . . . 2 Artifact . | . . . . . . . . . . . . Weapon 9 | 2 . 1 2 . . . 1 . . . 3 Energy Gun 2 | 1 . 1 . . . . . . . . . Energy Cannon 2 | . . . . . . . . . . . 2 Ballistic Gun . | . . . . . . . . . . . . Ballistic Cannon 1 | . . . . . . . . . . . 1 Launcher 1 | . . . 1 . . . . . . . . Special Weapon 1 | 1 . . . . . . . . . . . Impact Weapon . | . . . . . . . . . . . . Slashing Weapon 1 | . . . 1 . . . . . . . . Piercing Weapon . | . . . . . . . . . . . . Special Melee Weapon 1 | . . . . . . . 1 . . . . Unidentified Prototypes 3 | . . 1 . . . 1 . . . . 1 Parts Lost 35 | . . 3 1 . . 8 3 . . 6 14 Power 7 | . . 1 1 . . 2 . . . . 3 Propulsion 11 | . . 1 . . . 3 1 . . 1 5 Utility 13 | . . . . . . 3 2 . . 4 4 Weapon 4 | . . 1 . . . . . . . 1 2 Highest Loss Streak 11 | . . 3 1 . . 8 2 . . 6 11 To Critical Strikes . | . . . . . . . . . . . . Average Backups 3 | 3 5 4 2 5 4 5 2 3 3 3 1 Power . | 1 2 1 . 1 1 . . . . . . Propulsion . | 1 2 . . . . 1 . 1 1 1 . Utility 2 | 1 1 2 1 4 3 3 2 2 2 2 1 Weapon . | . . . . . . . . . . . . Tool/Special . | . . . . . . . . . . . . Unused Backups 2 | . . . . . 1 1 . . . . . Power 1 | . . . . . 1 . . . . . . Propulsion . | . . . . . . . . . . . . Utility . | . . . . . . . . . . . . Weapon 1 | . . . . . . 1 . . . . . Tool/Special . | . . . . . . . . . . . . Average Slot Usage (%) 72 | . 100 93 91 86 84 78 50 53 46 32 27 Engine 6 | . 14 13 7 11 7 . . . . . . Core 1 | . . . . . . 9 . . . . 1 Wheel 4 | . 28 9 . . . . . . . . . Hover 1 | . . . . . . . . . . . 10 Flight 14 | . . 17 22 20 22 19 18 15 13 9 . Device 18 | . 14 19 33 44 36 28 8 . . . 1 Storage 2 | . 14 5 . . . . . . . . . Processor 6 | . . . 10 . . 5 14 15 13 8 11 Hackware 1 | . . . . . 9 5 . 7 6 5 . Energy Gun 8 | . 14 26 13 . . . . . . . . Special Weapon 1 | . 14 . . . . . . . . . . Slashing Weapon 3 | . . . 3 11 9 7 7 7 6 4 . Peak Build Rating 42 | 7 7 14 19 18 27 34 28 23 23 34 42 Average Rating 17 | 4 7 9 18 17 22 28 23 23 23 16 23 On Entrance 15 | . 7 7 14 18 18 27 21 23 23 23 2 Avg Prop Armor Cover (%) 5 | . . 3 3 4 4 5 5 6 6 6 9 Naked Turns 17 | . . . . . . . . . . 17 . Heaviest Build 29 | 11 11 15 15 12 14 20 3 3 3 9 29 Greatest Support 48 | 32 32 26 10 14 18 18 10 5 5 5 48 Greatest Overweight (x) 9 | . . 2 3 1 . 1 . . . 1 9 Average Overweight (x) . | . . . . . . . . . . . . Largest Inventory Capacity 8 | 8 8 8 5 5 5 5 5 5 5 5 5 Average Capacity 5 | 6 8 6 5 5 5 5 5 5 5 5 5 Most Carried 8 | 6 6 8 5 5 5 5 5 3 3 5 5 Average Carried 3 | 3 5 3 3 5 4 4 2 3 3 3 1 Final Capacity 8 | 8 8 5 5 5 5 5 5 5 5 5 5 Final Carried 6 | 5 6 3 5 5 5 4 3 3 3 5 4 Class Distribution -------------------- 53% | Mutant 35% | Scavenger-Mutant 11% | Sprinter Dominant Class ---------------- Mutant | -10/Materials Scavenger-Mutant | -10/Mines Scavenger-Mutant | -9/Materials Scavenger-Mutant | -9/Mines Sprinter | -8/Materials Sprinter | -7/Factory Mutant | -7/Lower Caves Mutant | -7/Lower Caves Mutant | -6/Factory Mutant | -6/DSF Mutant | -5/Factory Resources | -11 -10 -10 -9 -9 -8 -7 -7 -7 -6 -6 -5 ----------- Run | Yrd Mat Min Mat Min Mat Fac Low Low Fac DSF Fac Matter Collected 683 | 215 56 90 102 29 50 29 91 . . 6 15 Remotely . | . . . . . . . . . . . . Salvage Created 1232 | 56 56 281 162 . 112 106 399 . . . 60 Parts 50 | 7 3 11 10 . 6 4 6 . . . 3 Haulers Intercepted 3 | . . . 1 . 1 1 . . . . . Recyclers Shooed . | . . . . . . . . . . . . Parts Field Recycled . | . . . . . . . . . . . . Retrieved Matter . | . . . . . . . . . . . . Parts Self-Destructed 1 | . . . . . . . 1 . . . . Prevented . | . . . . . . . . . . . . Parts Restored . | . . . . . . . . . . . . Kills | -11 -10 -10 -9 -9 -8 -7 -7 -7 -6 -6 -5 ------- Run | Yrd Mat Min Mat Min Mat Fac Low Low Fac DSF Fac Combat Hostiles Destroyed 18 | . 2 7 3 . 1 2 2 . . . 1 Melee 6 | . . . . . 1 2 2 . . . 1 Guns 9 | . 1 7 1 . . . . . . . . Cannons 1 | . 1 . . . . . . . . . . AOE 2 | . . . 2 . . . . . . . . Classes Destroyed 9 | 2 3 1 2 . . . 1 . . . . Builder 1 | . 1 . . . . . . . . . . Tunneler 3 | 2 . . 1 . . . . . . . . Hauler 3 | . . . 1 . 1 1 . . . . . Recycler 2 | 1 . 1 . . . . . . . . . Minesweeper 1 | . . . . . . . 1 . . . . Operator 1 | . 1 . . . . . . . . . . Swarmer 4 | . . 3 . . . 1 . . . . . Grunt 13 | . 2 4 2 . 1 1 2 . . . 1 Duelist 1 | . . . 1 . . . . . . . . Packrat 3 | . . . . . . . 3 . . . . Best Kill Streak 4 | 2 2 4 3 . 1 3 1 . . . 1 Combat Bots Only 3 | . 2 3 3 . 1 2 1 . . . 1 Max Kills in Single Turn 1 | 1 1 1 1 . 1 1 1 . . . 1 Gunslinging . | . . . . . . . . . . . . Exploded 1 | . . . 1 . . . . . . . . Melee 1 | . . . . . 1 1 1 . . . 1 Uniques/NPCs Destroyed . | . . . . . . . . . . . . Combat | -11 -10 -10 -9 -9 -8 -7 -7 -7 -6 -6 -5 -------- Run | Yrd Mat Min Mat Min Mat Fac Low Low Fac DSF Fac Hostile Shots Fired 436 | . 8 42 24 2 17 59 28 . . 49 207 Missed 192 | . 3 18 10 1 14 25 7 . . 21 93 Hits 244 | . 5 24 14 1 3 34 21 . . 28 114 Melee 21 | . . . 4 . . . . . . 17 . Projectile 223 | . 5 24 10 1 3 34 21 . . 11 114 AOE 7 | . . . . 1 . . . . . . 6 Critical Strikes 13 | . . . 1 . . . . . . 10 2 Damage Taken 4634 | . 57 296 241 40 41 366 355 . . 711 2527 Core 2135 | . 23 72 86 14 10 125 206 . . 598 1001 Absorbed by Shields 97 | . . . . . . . . . . 97 . Core Remaining (%) 69 | 100 . 62 . 75 98 . . 52 . 29 . Volleys Fired 57 | 4 10 31 8 . . . . . . . 4 Largest 2 | 2 2 2 2 . . . . . . . 1 Hottest 140 | 140 140 105 105 . . . . . . . 47 Shots Fired 91 | 6 18 47 16 . . . . . . . 4 Gun 75 | 4 10 47 14 . . . . . . . . Cannon 4 | . . . . . . . . . . . 4 Launcher 2 | . . . 2 . . . . . . . . Special 10 | 2 8 . . . . . . . . . . Kinetic 4 | . . . . . . . . . . . 4 Thermal 85 | 6 18 47 14 . . . . . . . . Explosive 2 | . . . 2 . . . . . . . . Electromagnetic . | . . . . . . . . . . . . Robot Hit Streak 9 | 3 4 9 4 . . . . . . . 7 Robot Miss Streak 3 | 1 2 3 2 . . . . . . . . Penetration Max . | . . . . . . . . . . . . Secondary Targets 2 | . . 2 . . . . . . . . . Max Gunslinging Chain 1 | . . 1 . . . . . . . . . Shots Hit Robots 98 | 5 11 32 13 . 6 7 17 . 2 1 4 Core Hits 42 | 4 5 13 8 . 2 3 5 . . . 2 Critical Kills . | . . . . . . . . . . . . Critical Parts Destroyed . | . . . . . . . . . . . . Critical Strikes 1 | . . . . . . . 1 . . . . Sever 1 | . . . . . . . 1 . . . . Melee Attacks 43 | . . . 2 . 6 9 23 . 2 1 . Impact . | . . . . . . . . . . . . Slashing 40 | . . . 2 . 6 9 23 . . . . Piercing . | . . . . . . . . . . . . Sneak Attacks 10 | . . . 2 . 1 1 4 . 2 . . Combat Hostiles . | . . . . . . . . . . . . Follow-up Attacks . | . . . . . . . . . . . . Damage Inflicted 2487 | 81 185 386 402 . 252 300 735 . . 4 142 Guns 597 | 33 65 386 113 . . . . . . . . Cannons 132 | . . . . . . . . . . . 132 Explosions 143 | . . . 143 . . . . . . . . Melee 1433 | . . . 146 . 252 300 735 . . . . Ramming 14 | . . . . . . . . . . 4 10 Kinetic 132 | . . . . . . . . . . . 132 Thermal 765 | 81 185 386 113 . . . . . . . . Explosive 143 | . . . 143 . . . . . . . . Electromagnetic . | . . . . . . . . . . . . Impact . | . . . . . . . . . . . . Slashing 1433 | . . . 146 . 252 300 735 . . . . Piercing . | . . . . . . . . . . . . Highest Corruption 2 | . . . . . . . . . . 2 . Average Corruption 2 | . . . . . . . . . . 2 . Corruption Purged . | . . . . . . . . . . . . Corruption Blocked . | . . . . . . . . . . . . Overload Shots . | . . . . . . . . . . . . Overflow Damage 193 | . 18 . . . . 20 155 . . . . Projectiles 18 | . 18 . . . . . . . . . . Explosions . | . . . . . . . . . . . . Melee 175 | . . . . . . 20 155 . . . . Knockbacks 2 | . . . . . . . . . . . 2 Impact . | . . . . . . . . . . . . Kinetic 1 | . . . . . . . . . . . 1 Secondary 1 | . . . . . . . . . . . 1 Self-Inflicted Damage 6 | . . . . . . . . . . 2 4 Shots . | . . . . . . . . . . . . Rammed 3 | . . . . . . . . . . 1 2 Targets Rammed 3 | . . . . . . . . . . 1 2 Kicked . | . . . . . . . . . . . . Crushed . | . . . . . . . . . . . . Highest Temperature 496 | 40 190 496 147 . . 4 . . . . 18 Average Temperature 113 | 23 64 163 60 . . 4 . . . . 14 Received Heat Transfer 819 | . 30 141 60 6 9 78 189 . . . 306 Effects 3 | . . 3 . . . . . . . . . Shutdowns 1 | . . 1 . . . . . . . . . Energy Bleed 1 | . . 1 . . . . . . . . . Short Circuit 1 | . . 1 . . . . . . . . . Siege Activations . | . . . . . . . . . . . . Martial Activations . | . . . . . . . . . . . . Shielding Activations . | . . . . . . . . . . . . Robots Disrupted . | . . . . . . . . . . . . Combat Hostiles . | . . . . . . . . . . . . Robots Corrupted . | . . . . . . . . . . . . Combat Hostiles . | . . . . . . . . . . . . Parts Fried . | . . . . . . . . . . . . Impact Corruptions . | . . . . . . . . . . . . Robots Melted . | . . . . . . . . . . . . Combat Hostiles . | . . . . . . . . . . . . Parts Melted 4 | . . 3 1 . . . . . . . . Heat Transferred 1731 | 175 400 883 273 . . . . . . . . Parts Sabotaged . | . . . . . . . . . . . . Parts Stolen . | . . . . . . . . . . . . Parts Stripped . | . . . . . . . . . . . . Power Chain Reactions . | . . . . . . . . . . . . Alert | -11 -10 -10 -9 -9 -8 -7 -7 -7 -6 -6 -5 ------- Run | Yrd Mat Min Mat Min Mat Fac Low Low Fac DSF Fac Maximum Alert Level . | . . . . . . . . . . . . Low Security (%) 100 | 100 100 100 100 100 100 100 . . 100 100 100 Level 1 . | . . . . . . . . . . . . Level 2 . | . . . . . . . . . . . . Level 3 . | . . . . . . . . . . . . Level 4 . | . . . . . . . . . . . . Level 5 . | . . . . . . . . . . . . High Security . | . . . . . . . . . . . . Max Security . | . . . . . . . . . . . . Peak Influence 85 | 5 42 85 79 4 40 50 . . . . 20 Initial 13 | . . . . 4 . 13 . . . . . Average 14 | 1 11 27 25 1 14 8 . . . . 2 Influence Increases 677 | 15 62 175 131 . 57 72 100 . . . 65 Destroy 0b10 Robot/C 360 | . 40 140 60 . 20 40 40 . . . 20 Destroy 0b10 Robot/NC 55 | 15 10 5 10 . 5 5 5 . . . . Destroy Leader 76 | . 10 30 12 . 2 12 10 . . . . Disable Machine 15 | . . . . . . . . . . . 15 Destroy Structure 21 | . 2 . 19 . . . . . . . . Partial Spotted 15 | . . . . . . . . . . . 15 Lose Combat Pursuer 135 | . . . 30 . 30 15 45 . . . 15 Influence Decreases 677 | 15 62 175 120 11 27 102 100 . . . 65 Entered New Map 24 | . . . . 7 . 17 . . . . . Time Decay 538 | 15 62 155 110 4 27 30 90 . . . 45 Lost Part 107 | . . 20 10 . . 47 10 . . . 20 Lost Ally 8 | . . . . . . 8 . . . . . Squads Dispatched 8 | . 1 . 2 . 1 1 . . . 1 2 Investigation . | . . . . . . . . . . . . Extermination 1 | . . . . . . . . . . . 1 Reinforcement 7 | . 1 . 2 . 1 1 . . . 1 1 Assault . | . . . . . . . . . . . . Garrison . | . . . . . . . . . . . . Intercept . | . . . . . . . . . . . . Searches Triggered . | . . . . . . . . . . . . Construction Impeded . | . . . . . . . . . . . . Haulers Reinforced 2 | . . . . . . 1 . . . . 1 Active Scanning Responses . | . . . . . . . . . . . . Cargo Convoy Interrupts . | . . . . . . . . . . . . Stealth | -11 -10 -10 -9 -9 -8 -7 -7 -7 -6 -6 -5 --------- Run | Yrd Mat Min Mat Min Mat Fac Low Low Fac DSF Fac Distress Signals 5 | . . . 1 . 4 . . . . . . Communications Jammed . | . . . . . . . . . . . . Distress Signals . | . . . . . . . . . . . . Times Spotted 81 | . 6 7 10 6 21 6 4 . . 5 16 Peak Tracking Total 16 | . 2 3 3 4 16 3 3 . . 5 11 Tactical Retreats 10 | . . . 2 1 2 2 2 . . . 1 ECM-based Alert Blocks 9 | . . . 1 1 6 1 . . . . . Traps | -11 -10 -10 -9 -9 -8 -7 -7 -7 -6 -6 -5 ------- Run | Yrd Mat Min Mat Min Mat Fac Low Low Fac DSF Fac Traps Triggered 4 | . . . . . . 2 . . . 2 . Indirectly . | . . . . . . . . . . . . Trap Hack Attempts . | . . . . . . . . . . . . Triggered . | . . . . . . . . . . . . Disarmed . | . . . . . . . . . . . . Reprogrammed . | . . . . . . . . . . . . Reused . | . . . . . . . . . . . . Traps Extracted . | . . . . . . . . . . . . Installed . | . . . . . . . . . . . . Triggered . | . . . . . . . . . . . . Machines | -11 -10 -10 -9 -9 -8 -7 -7 -7 -6 -6 -5 ---------- Run | Yrd Mat Min Mat Min Mat Fac Low Low Fac DSF Fac Machines Disabled 1 | . . . . . . . . . . . 1 Max in Single Turn 1 | . . . . . . . . . . . 1 Machines Repaired . | . . . . . . . . . . . . Machines Dismantled . | . . . . . . . . . . . . Machines Sabotaged . | . . . . . . . . . . . . Overloaded Fab Kills . | . . . . . . . . . . . . Hacking | -11 -10 -10 -9 -9 -8 -7 -7 -7 -6 -6 -5 --------- Run | Yrd Mat Min Mat Min Mat Fac Low Low Fac DSF Fac Machines Accessed 6 | . 1 1 . . . 3 . . 1 . . Terminals 4 | . 1 . . . . 2 . . 1 . . Fabricators 1 | . . . . . . 1 . . . . . Repair Stations . | . . . . . . . . . . . . Recycling Units . | . . . . . . . . . . . . Scanalyzers . | . . . . . . . . . . . . Garrison Access . | . . . . . . . . . . . . Total Hacks 9 | . 3 1 . . . 3 . . 2 . . Successful 5 | . 1 1 . . . 2 . . 1 . . Failed 4 | . 2 . . . . 1 . . 1 . . Catastrophic . | . . . . . . . . . . . . Database Lockouts . | . . . . . . . . . . . . Manual . | . . . . . . . . . . . . Terminals 7 | . 3 . . . . 2 . . 2 . . Fabricators 1 | . . . . . . 1 . . . . . Repair Stations . | . . . . . . . . . . . . Recycling Units . | . . . . . . . . . . . . Scanalyzers . | . . . . . . . . . . . . Garrison Access . | . . . . . . . . . . . . Terminal Hacks 4 | . 1 1 . . . 1 . . 1 . . Record 1 | . 1 . . . . . . . . . . Open Door 1 | . . 1 . . . . . . . . . Open DSF 2 | . . . . . . 1 . . 1 . . Fabricator Hacks 1 | . . . . . . 1 . . . . . Network Status 1 | . . . . . . 1 . . . . . Repair Station Hacks . | . . . . . . . . . . . . Recycling Unit Hacks . | . . . . . . . . . . . . Scanalyzer . | . . . . . . . . . . . . Garrison Access Hacks . | . . . . . . . . . . . . Unauthorized Hacks . | . . . . . . . . . . . . Terminals . | . . . . . . . . . . . . Fabricators . | . . . . . . . . . . . . Repair Stations . | . . . . . . . . . . . . Recycling Units . | . . . . . . . . . . . . Scanalyzers . | . . . . . . . . . . . . Garrison Access . | . . . . . . . . . . . . Data Cores Recovered . | . . . . . . . . . . . . Used . | . . . . . . . . . . . . Hacking Detections 2 | . 1 . . . . 1 . . . . . Full Trace Events . | . . . . . . . . . . . . Feedback Events . | . . . . . . . . . . . . Feedback Blocked . | . . . . . . . . . . . . Robot Schematics Acquired . | . . . . . . . . . . . . Robots Built . | . . . . . . . . . . . . Authchips . | . . . . . . . . . . . . Time . | . . . . . . . . . . . . Total Robot Build Rating . | . . . . . . . . . . . . Part Schematics Acquired . | . . . . . . . . . . . . Parts Built . | . . . . . . . . . . . . Authchips . | . . . . . . . . . . . . Time . | . . . . . . . . . . . . Total Part Build Rating . | . . . . . . . . . . . . Part Studies Acquired . | . . . . . . . . . . . . Parts Repaired . | . . . . . . . . . . . . Time . | . . . . . . . . . . . . Parts Recycled . | . . . . . . . . . . . . Recycled Matter . | . . . . . . . . . . . . Retrieved Matter . | . . . . . . . . . . . . Retrieved Components . | . . . . . . . . . . . . Parts Scanalyzed . | . . . . . . . . . . . . Part Schematics Acquired . | . . . . . . . . . . . . Parts Damaged . | . . . . . . . . . . . . Bothacking | -11 -10 -10 -9 -9 -8 -7 -7 -7 -6 -6 -5 ------------ Run | Yrd Mat Min Mat Min Mat Fac Low Low Fac DSF Fac Used RIF Installer . | . . . . . . . . . . . . Robots Hacked 2 | . . . . . . . . . 1 1 . Non-combat 1 | . . . . . . . . . 1 . . Combat 1 | . . . . . . . . . . 1 . Robot Hacks Applied 2 | . . . . . . . . . 1 1 . parse_system 1 | . . . . . . . . . . 1 . no_distress 1 | . . . . . . . . . 1 . . Relay Couplers Released . | . . . . . . . . . . . . Fabnet Peak Effective % . | . . . . . . . . . . . . Robots Rewired . | . . . . . . . . . . . . Allies Hacked . | . . . . . . . . . . . . Hacks Repelled . | . . . . . . . . . . . . Allies | -11 -10 -10 -9 -9 -8 -7 -7 -7 -6 -6 -5 -------- Run | Yrd Mat Min Mat Min Mat Fac Low Low Fac DSF Fac Total Allies . | . . . . . . . . . . . . Largest Group . | . . . . . . . . . . . . Highest-Rated Group . | . . . . . . . . . . . . Highest-Rated Ally . | . . . . . . . . . . . . Total Orders 18 | . . 3 5 . 3 5 . . . 2 . STAY 1 | . . . . . . 1 . . . . . ROAM 8 | . . . 1 . 2 3 . . . 2 . FOLLOW 1 | . . . 1 . . . . . . . . EXPLORE 4 | . . 2 1 . . 1 . . . . . RETURN 4 | . . 1 2 . 1 . . . . . . Ally Attacks 25 | . . . . . 14 11 . . . . . Total Damage 83 | . . . . . 25 58 . . . . . Kills . | . . . . . . . . . . . . Allies Corrupted . | . . . . . . . . . . . . Allies Melted . | . . . . . . . . . . . . Intel | -11 -10 -10 -9 -9 -8 -7 -7 -7 -6 -6 -5 ------- Run | Yrd Mat Min Mat Min Mat Fac Low Low Fac DSF Fac Active Infowar (turns) 1665 | 7 215 439 274 68 83 134 369 10 26 40 . Optics 444 | . . . . . . . 368 10 26 40 . Terrain 36 | . . . 35 . . . 1 . . . . Seismic 1178 | 7 215 439 274 68 67 108 . . . . . ECM 178 | . . . 25 68 16 69 . . . . . Robot Analysis Total . | . . . . . . . . . . . . Derelict Logs Recovered 2 | . . 1 . . . . 1 . . . . Drone Launches 25 | . . 3 6 . 6 5 . . . 5 . Drone Recoveries 18 | . . 3 6 . 6 2 . . . 1 . Exploration | -11 -10 -10 -9 -9 -8 -7 -7 -7 -6 -6 -5 ------------- Run | Yrd Mat Min Mat Min Mat Fac Low Low Fac DSF Fac Turns Passed 2239 | 88 215 441 373 76 103 163 380 10 26 71 293 Spaces Moved 2300 | 68 159 236 225 92 185 282 583 29 64 73 304 Core 138 | 18 . . . . . . . . . 19 101 Treads . | . . . . . . . . . . . . Legs . | . . . . . . . . . . . . Wheels 305 | 50 159 96 . . . . . . . . . Hover 203 | . . . . . . . . . . . 203 Flight 1654 | . . 140 225 92 185 282 583 29 64 54 . Fastest Speed 29 | 50 100 90 40 37 29 29 32 35 35 35 40 Average Speed 62 | 80 100 134 94 57 32 31 33 35 35 39 79 Slowest Speed 500 | 100 100 200 280 120 37 115 35 35 35 100 500 Overloaded Moves . | . . . . . . . . . . . . Propulsion Burnouts . | . . . . . . . . . . . . Robots Hopped 1 | . . . . . . 1 . . . . . Potential Cave-ins . | . . . . . . . . . . . . Cave-ins Triggered . | . . . . . . . . . . . . Exploration Rate (%) 29 | 4 28 76 23 25 17 8 72 7 2 83 12 Regions Visited 11 Branch Regions 4 Pre-discovered Areas 1 | . . 1 . . . . . . . . . Known Exits Taken 1 | . . . . . . . . . 1 . . Unknown Exits Taken 9 | 1 1 1 1 1 1 1 1 1 . . . Scrap Searched 3 | . . 1 . 1 . . 1 . . . . Spaces Dug . | . . . . . . . . . . . . Terrain Destroyed 22 | . 2 . 20 . . . . . . . . Melee . | . . . . . . . . . . . . Projectile 2 | . 2 . . . . . . . . . . AOE 20 | . . . 20 . . . . . . . . Terrain Rammed . | . . . . . . . . . . . . Walls Destroyed . | . . . . . . . . . . . . Machines Disabled . | . . . . . . . . . . . . Actions | -11 -10 -10 -9 -9 -8 -7 -7 -7 -6 -6 -5 --------- Run | Yrd Mat Min Mat Min Mat Fac Low Low Fac DSF Fac Total 2911 | 90 181 312 367 114 219 337 730 28 65 115 353 Wait 338 | . 12 24 113 21 15 33 113 . . 5 2 Move 2287 | 67 158 235 224 91 184 279 582 28 63 72 304 Hop 1 | . . . . . . 1 . . . . . Pick Up 61 | 11 1 5 7 . 5 2 3 . . 10 17 Fast Attach 15 | 1 . . 2 1 1 8 . . . . 2 Attach 53 | 6 . 5 4 . 3 3 6 . . 7 19 Detach 4 | . . 1 . . . . 2 . . . 1 Swap 12 | 1 . 6 3 . 1 . 1 . . . . Drop 21 | . . 5 4 1 4 2 . . . 3 2 Fire 57 | 4 10 31 8 . . . . . . . 4 Melee 43 | . . . 2 . 6 9 23 . 2 1 . Ram 3 | . . . . . . . . . . 1 2 Kick . | . . . . . . . . . . . . Crush . | . . . . . . . . . . . . Escape Stasis 15 | . . . . . . . . . . 15 . Rewire 1 | . . . . . . . . . . 1 . Trap . | . . . . . . . . . . . . Miscellaneous . | . . . . . . . . . . . . Route ------- -11/Scrapyard -10/Materials -10/Mines -9/Materials -9/Mines -8/Materials -7/Factory -7/Lower Caves -7/Lower Caves -6/Factory -6/DSF -5/Factory (discovered 1 exit: Upp) History --------- Turn | Location | Event 46 | -11/Scrapyard | Discovered new exit (range 14) 89 | -11/Scrapyard | Entered Materials 298 | -10/Materials | Discovered new exit (range 7) 304 | -10/Materials | Entered Mines 313 | -10/Mines | Build established: Mutant 357 | -10/Mines | Lost 3 parts (1p1n1w) 550 | -10/Mines | Learned location of Mines (-9) 569 | -10/Mines | Found the Drone Emporium 574 | -10/Mines | Found Prototype Device 575 | -10/Mines | Identified Thief Drone Bay 594 | -10/Mines | Discovered new exit (range 49) 745 | -10/Mines | Entered Materials 745 | -9/Materials | Evolved 2 slots: Utility x2 767 | -9/Materials | Build established: Scavenger-Mutant 1034 | -9/Materials | Discovered new exit (range 45) 1118 | -9/Materials | Entered Mines 1119 | -9/Mines | Assembled infested the area 1124 | -9/Mines | Assisted by a Guerilla fighting off Assembled 1136 | -9/Mines | Found DCF Scrap (14 items) 1175 | -9/Mines | Discovered new exit (range 12) 1194 | -9/Mines | Entered Materials 1194 | -8/Materials | Evolved 2 slots: Propulsion x1, Utility x1 1291 | -8/Materials | Discovered new exit (range 16) 1297 | -8/Materials | Entered Factory 1297 | -7/Factory | Evolved 2 slots: Power x1, Utility x1 1308 | -7/Factory | Discovered new exit (range 40) 1460 | -7/Factory | Entered Lower Caves 1469 | -7/Lower Caves | Lost 8 parts (2p3n3u) 1555 | -7/Lower Caves | Encountered a Warlord checkpoint 1824 | -7/Lower Caves | Discovered new exit (range 17) 1840 | -7/Lower Caves | Entered another Lower Caves area 1846 | -7/Lower Caves | Discovered new exit (range 13) 1850 | -7/Lower Caves | Entered Factory 1850 | -6/Factory | Evolved 2 slots: Propulsion x1, Weapon x1 1852 | -6/Factory | Identified exit to DSF 1876 | -6/Factory | Entered DSF 1907 | -6/DSF | Additional patrols routed to DSF 1924 | -6/DSF | Core integrity fell below 50% 1934 | -6/DSF | Discovered new exit (range 15) 1940 | -6/DSF | Lost 4 allies 1942 | -6/DSF | Build established: Mutant 1947 | -6/DSF | Entered Factory 1947 | -5/Factory | Evolved 2 slots: Power x1, Utility x1 1948 | -5/Factory | Identified exit to Upper Caves 1960 | -5/Factory | Lost 6 parts (1n4u1w) 2047 | -5/Factory | Spotted B-75 Beast 2155 | -5/Factory | Lost 11 parts (1p5n3u2w) 2168 | -5/Factory | Core integrity fell below 50% 2178 | -5/Factory | Core integrity fell below 20% 2240 | -5/Factory | Destroyed by B-75 Beast via exploding Fusion Modulator Last Messages --------------- Acquired Imp. Shock Absorption System. Acquired Prototype Protection. Slug penetrates A-15 Conveyor. Slug penetrates Wall. K-01 Serf cleans the Fusion Modulator. Penetrated by Slug. K-01 Serf cleans the Fusion Modulator. Slug penetrates Fusion Modulator. K-01 Serf cleans the Recycling Unit. K-01 Serf cleans the Fusion Modulator. Penetrated by Slug. Fusion Modulator explodes. K-01 Serf destroyed. Fusion Modulator explodes. Core Analyzer destroyed. Fusion Modulator explodes. G-50 Soldier destroyed. Matter Pump disabled. G-67 Veteran destroyed. Neutrino Core destroyed. Map ----- +----------------------------------------------------+ | ?????????????????????????????????????????????????? | | ?????????????????????????????????????????????????? | | ?????????????????????????????????????????????????? | | ?????????????????????????????????????????????????? | | ?????????????????????????????????????????????????? | | ?????????????????????????????????????????????????? | | ?????????????????????????????????????????????????? | | ?????????????????????????????????????????????????? | | ?????????????????????????????????????????????????? | | ?????????????????????????????????????????????????? | | ????????????????????????????????? ???????????????? | | ????????????????????????????????? ???????????????? | | ?????????????????? ?????????????? #??????????????? | | ???????????????? ????????????? #??????????????? | | ?????????????? ????????????# #??????????????? | | ?????????????? ???????????# #?????????????? | | ??????????????? ???????????# #????????????# | | ??????????????? #########?# #????????????#[ | | ??????????????? R#"""T"""### ###??????????? | | ???????????????? #???????????? | | ????????????????? ! #???????????? | | ?????????????????? ""#????????????? | | ?????????????????g """ T"#????????????? | | ????????????????? """ ""#????????????? | | ????????????????# b""" #????????????? | | ????????????????# @ #####+######## | | ????????????????# """ "%%[ ! | | ????????????????? """ "% % h | | ????????????????# """ "% [ | | ????????????????# [%%= | | ????????????????#[ k gg= | | ????????????????## #""Y"";;;;;############# | | ?????????????????# #"""""######???????????# | | ?????????????????# ?#######????????????????# | | ?????????????????#??????????????????????????# | | ????????????????????????????????????????????# | | ????????????????????????????????????????????+ | | ????????????????????????????????????????????# | | ????????????????????????????????????????????# | | ????????????????????????????????????????????# | | ???????????????????????????????????????????? | | ???????????????????????????????????????????? | | ???????????????????????????????????????????? | | ???????????????????????????????????????????? | | ?????????????????????????????????????????????????? | | ?????????????????????????????????????????????????? | | ?????????????????????????????????????????????????? | | ?????????????????????????????????????????????????? | | ?????????????????????????????????????????????????? | | ?????????????????????????????????????????????????? | +----------------------------------------------------+ Best States ------------- Heat Dissipation 40 Energy Generation 23 Energy Capacity 500 Matter Stores 300 Matter Capacity 300 Sight Range 18 Terrain Scan Range 16 Terrain Scan Density 85 ECM Strength 1 Additional Mass Support 6 Armor Coverage 300 Evasion (%) 64 Targeting Accuracy 6 Melee Accuracy 6 Core Analysis 9 Salvage Targeting 3 Offensive Hacking 10 Authchip Count 1 Item Schematics ----------------- None Robot Schematics ------------------ None Fabricated ------------ Nothing Repaired ---------- Nothing Studied --------- None Alien Tech Used ----------------- None Achievements -------------- Bumper Bots Deductive Reasoning Fist Fight Hammer Time Not Today, Chutes Window Shopping Challenges ------------ None Game ------ Seed WaveHypervelocityWings Manual? 0 Play Time 01:13:46 Cumulative 10.6 hours Start 2026.07.25 @ 22:50:22 End 2026.07.26 @ 00:04:29 Sessions 1 Manual Loads 0 Difficulty Rogue Special Mode None Game No. 13 Rogue 13 Adventurer 0 Explorer 0 Win Type - Total 0 Types 0/0/0/0/0/0/0/0/0/0 Lore% 3 Gallery% 11 Achievement% 10 Wizard Run 0 Options --------- Layout 1 ASCII 0 Keyboard 0 Movement Mouse Keybinds 0 Fullscreen 2 Font 24/Smallcaps Map View 50x35 Zoom Use 0% Tactical HUD 0 Map Filters NONE Filters NONE Steam 1 RUN: 1fb588d9-d06c-466a-9734-7eb651305da2